fUST/lending_fUST_20240102
["ID","MTS","AMOUNT","RATE_DAILY","PERIOD"]
[309813559,1704162643586,-500.0,0.00041506,7]
[309813560,1704162643595,-500.0,0.00041643,7]
[309813561,1704162643605,-500.0,0.0004178,7]
[309813562,1704162643614,-500.0,0.00041917,7]
[309813563,1704162643625,-500.0,0.00042054,7]
[309813564,1704162643634,-1854.53165443,0.00042191,3]
[309813565,1704162643649,-2772.07578467,0.00042191,3]
[309813566,1704162643697,-0.84448223,0.00042044,3]
[309813567,1704162643709,-499.30537693,0.00042044,3]
[309813568,1704162643721,-3238.88014084,0.00042044,3]
[309813569,1704162643731,-542.55615237,0.00042191,3]
[309813570,1704162643743,-1161.03789872,0.00042191,3]
[309813571,1704162643806,-391.14146016,0.00042191,3]
[309813593,1704162646542,-757.11713402,0.00042191,3]
[309813625,1704163682285,919.0,0.0001,2]
[309813626,1704163730780,5210.01915065,0.0001,2]
[309813627,1704163746767,5210.01915065,0.0001,2]
[309813628,1704163764781,4600.49549342,0.0001,2]
[309813629,1704163785019,618.34955824,0.0001,2]
[309813630,1704163785113,297.65265133,0.0001,2]
[309813631,1704163786250,730.9174489,0.0001,2]
[309813632,1704163801022,624.28012371,0.0001,2]
[309813633,1704163804255,754.19236952,0.0001,2]
[309813634,1704163805109,297.65265133,0.0001,2]
[309813635,1704163827195,263.92316329,0.0001,2]
[309813674,1704163832736,-585.90397292,0.00023666,2]
[309813676,1704163832746,-300.76052365,0.00023667,2]
[309813678,1704163832755,-198.5260656,0.00023667,2]
[309813679,1704163832764,-297.36065736,0.00023667,2]
[309813680,1704163832774,-268.6781661,0.00023667,2]
[309813681,1704163832783,-2031.17478188,0.00023667,2]
[309813682,1704163832793,-2989.40003667,0.00023667,2]
[309813684,1704163832803,-154.81422293,0.00023668,2]
[309813686,1704163832812,-274.1459145,0.00023668,2]
[309813688,1704163832821,-154.81422293,0.00023668,2]
[309813690,1704163832831,-4802.57442748,0.00023668,2]
[309813692,1704163832839,-14217.0238232,0.00023668,2]
[309813694,1704163832849,-1584.45813486,0.00023668,2]
[309813695,1704163832858,-154.81422293,0.00023669,2]
[309813697,1704163832868,-235.2722466,0.00023669,2]
[309813699,1704163832878,-2703.5310256,0.00023669,2]
[309813701,1704163832888,-13669.99879992,0.00023669,2]
[309813704,1704163832898,-4907.56129694,0.0002367,2]
[309813706,1704163832907,-22914.0942804,0.00023671,2]
[309813708,1704163832918,-675.69429378,0.00024433,2]
[309813710,1704163832927,-154.81422293,0.00024434,2]
[309813711,1704163832936,-169.0099691,0.00024435,2]
[309813714,1704163832945,-4403.14,0.00024652,3]
[309813715,1704163832954,-212.57155595,0.00024662,2]
[309813717,1704163832964,-2026.57814012,0.00024662,2]
[309813719,1704163832973,-10473.05577926,0.00024662,2]
[309813721,1704163832982,-154.81422293,0.0002467,2]
[309813723,1704163832992,-3902.13958521,0.0002467,2]
[309813725,1704163833001,-1575.79265476,0.0002467,2]
[309813727,1704163833010,-154.81422293,0.0002467,2]
[309813729,1704163833019,-524.73174263,0.0002467,2]
[309813731,1704163833030,-162.44234547,0.0002467,2]
[309813733,1704163833040,-852.00907345,0.00024671,2]
[309813735,1704163833050,-154.81422293,0.00024671,2]
[309813737,1704163833058,-870.90423159,0.00024671,2]
[309813739,1704163833067,-24900.0,0.00024707,2]
[309813741,1704163833077,-3000.0,0.00025,2]
[309813743,1704163833086,-954.0668853,0.00025619,2]
[309813745,1704163833094,-250.0,0.00025723,2]
[309813747,1704163833103,-1219.283762,0.00025723,2]
[309813748,1704163833112,-408.78458346,0.00026724,2]
[309813749,1704163833121,-420.45994145,0.00026724,2]
[309813750,1704163833131,-180.19711777,0.00026724,2]
[309813751,1704163833139,-396.2464126,0.00026743,2]
[309813752,1704163833148,-155.16909692,0.00026971,2]
[309813753,1704163833156,-985.425965,0.00026976,2]
[309813754,1704163833165,-255.048065,0.00026976,2]
[309813755,1704163833174,-200.0,0.00027143,15]
[309813756,1704163833183,-154.98533721,0.00027741,2]
[309813757,1704163833192,-178.258014,0.00027749,2]
[309813758,1704163833201,-985.425965,0.00027975,2]
[309813759,1704163833210,-985.425965,0.00028973,2]
[309813760,1704163833219,-154.79730939,0.00029463,2]
[309813761,1704163833228,-954.0668853,0.00029463,2]
[309813762,1704163833238,-154.79730937,0.0002947,2]
[309813763,1704163833247,-154.79730937,0.00029477,2]
[309813764,1704163833255,-280.0,0.00029857,15]
[309813765,1704163833264,-985.425965,0.00029971,2]
[309813766,1704163833273,-1050.30153828,0.0003,4]
[309813767,1704163833282,-985.425965,0.00030969,2]
[309813768,1704163833291,-218.42256092,0.00031526,4]
[309813769,1704163833300,-178.258014,0.00031531,2]
[309813770,1704163833309,-12774.04216491,0.00031532,2]
[309813771,1704163833318,-310.31811114,0.00031741,2]
[309813772,1704163833327,-1847.82512501,0.00031744,4]
[309813773,1704163833339,-391.0,0.00032842,15]
[309813774,1704163833351,-954.0668853,0.00033307,2]
[309813775,1704163833363,-176.743235,0.00033934,2]
[309813776,1704163833375,-1000.0,0.00034,7]
[309813777,1704163833387,-344.0,0.00035452,2]
[309813778,1704163833399,-332.152399,0.00035616,120]
[309813779,1704163833409,-276.5020075,0.00036896,4]
[309813780,1704163833420,-154.84515485,0.00037,4]
[309813781,1704163833429,-954.0668853,0.00037151,2]
[309813782,1704163833441,-196.80930524,0.00037187,2]
[309813783,1704163833452,-1204.2071574,0.00038093,4]
[309813784,1704163833462,-394.0,0.0003874,2]
[309813785,1704163833474,-361.40676018,0.00038999,4]
[309813786,1704163833486,-500.0,0.00038999,4]
[309813787,1704163833497,-245.27075008,0.00038999,7]
[309813788,1704163833508,-283.2861003,0.00039,2]
[309813834,1704163838973,-5000.0,0.00023666,5]
[309813835,1704163838983,-1028.76933116,0.00023666,2]
[309813837,1704163838996,-78227.0467231,0.00023667,2]
[309813839,1704163839007,-163.51383338,0.00024672,2]
[309813841,1704163839017,-646.05507014,0.00033999,4]
[309813843,1704163839028,-361.15732986,0.00033999,4]
[309813845,1704163839038,-500.0,0.00033999,4]
[309813847,1704163839048,-500.0,0.00033999,4]
[309813849,1704163839057,-280.57505624,0.00033999,4]
[309813851,1704163839067,-227.53446515,0.00033999,4]
[309813854,1704163839077,-294.65829162,0.00033999,4]
[309813856,1704163839089,-500.0,0.00033999,4]
[309813858,1704163839099,-155.37433258,0.00033999,4]
[309813860,1704163839110,-9716.7138997,0.00039,2]
[309813862,1704163839121,-2360.54109034,0.00039954,2]
[309813865,1704163839132,-11505.597555,0.0004,3]
[309813867,1704163839143,-155.0,0.00040232,2]
[309813869,1704163839153,-163.713886,0.00040881,2]
[309813871,1704163839163,-220.952035,0.00040881,2]
[309813873,1704163839174,-3669.28,0.00040985,3]
[309813876,1704163839186,-158.04158234,0.00040995,4]
[309813878,1704163839196,-156.02517904,0.00040995,4]
[309813880,1704163839206,-157.42578767,0.00040995,4]
[309813882,1704163839216,-15418.60665608,0.00040995,4]
[309813884,1704163839226,-2999.6357671,0.00040995,4]
[309813886,1704163839236,-954.0668853,0.00040995,2]
[309813900,1704163839248,-3056.12615237,0.00040998,12]
[309813902,1704163839360,-507.44027795,0.00041,2]
[309813904,1704163839370,-150.0,0.00041065,60]
[309813906,1704163839379,-150.0,0.00041065,7]
[309813908,1704163839388,-150.0,0.00041075,60]
[309813910,1704163839397,-150.0,0.00041075,7]
[309813912,1704163839406,-150.0,0.00041085,60]
[309813914,1704163839416,-150.0,0.00041085,7]
[309813916,1704163839425,-500.0,0.00041095,7]
[309813918,1704163839434,-500.0,0.00041095,7]
[309813920,1704163839444,-500.0,0.00041095,7]
[309813921,1704163839453,-500.0,0.00041095,7]
[309813923,1704163839463,-500.0,0.00041095,7]
[309813924,1704163839473,-500.0,0.00041095,7]
[309813925,1704163839483,-812.67,0.00041095,7]
[309813926,1704163839493,-500.0,0.00041095,7]
[309813927,1704163839502,-501.38464455,0.00041095,7]
[309813928,1704163839511,-509.11119532,0.00041095,7]
[309813929,1704163839523,-500.0,0.00041095,7]
[309813930,1704163839532,-500.0,0.00041095,2]
[309813931,1704163839541,-500.0,0.00041095,7]
[309813932,1704163839550,-500.84167357,0.00041095,7]
[309813933,1704163839560,-500.0,0.00041095,7]
[309813934,1704163839569,-500.119833,0.00041095,7]
[309813935,1704163839578,-500.0,0.00041095,7]
[309813936,1704163839587,-500.0,0.00041095,7]
[309813937,1704163839596,-520.17215198,0.00041095,7]
[309813938,1704163839606,-500.0,0.00041095,7]
[309813939,1704163839615,-500.0,0.00041095,7]
[309813940,1704163839625,-602.92967329,0.00041095,7]
[309813941,1704163839634,-500.0,0.00041095,7]
[309813942,1704163839643,-500.0,0.00041095,7]
[309813943,1704163839653,-708.7,0.00041095,7]
[309813944,1704163839662,-1597.09,0.00041095,7]
[309813945,1704163839671,-500.0,0.00041095,7]
[309813946,1704163839680,-500.0,0.00041095,7]
[309813947,1704163839689,-2435.28,0.00041095,7]
[309813948,1704163839699,-500.0,0.00041095,7]
[309813949,1704163839708,-500.0,0.00041095,7]
[309813950,1704163839717,-500.0,0.00041095,7]
[309813951,1704163839727,-511.53076204,0.00041095,7]
[309813952,1704163839737,-521.90692322,0.00041095,7]
[309813953,1704163839748,-500.0,0.00041095,7]
[309813954,1704163839757,-500.0,0.00041095,7]
[309813955,1704163839766,-500.0,0.00041095,7]
[309813956,1704163839775,-500.0,0.00041095,7]
[309813957,1704163839784,-500.0,0.00041095,7]
[309813958,1704163839794,-557.49671277,0.00041095,7]
[309813959,1704163839803,-500.0,0.00041095,7]
[309813960,1704163839816,-500.0,0.00041095,7]
[309813961,1704163839825,-1650.02,0.00041095,7]
[309813962,1704163839835,-500.0,0.00041095,7]
[309813963,1704163839844,-500.0,0.00041095,7]
[309813964,1704163839853,-194.08420909,0.00041095,7]
[309813965,1704163839863,-685.82,0.00041095,7]
[309813966,1704163839872,-500.0,0.00041095,7]
[309813967,1704163839882,-528.65706996,0.00041095,7]
[309813968,1704163839891,-470.52088449,0.00041095,7]
[309813969,1704163839900,-500.0,0.00041095,7]
[309813970,1704163839909,-502.96994907,0.00041095,7]
[309813971,1704163839918,-500.0,0.00041095,7]
[309813972,1704163839928,-500.0,0.00041095,7]
[309813973,1704163839937,-500.0,0.00041095,7]
[309813974,1704163839946,-500.0,0.00041095,7]
[309813975,1704163839955,-500.0,0.00041095,7]
[309813976,1704163839964,-500.0,0.00041095,7]
[309813977,1704163839974,-525.49511778,0.00041095,7]
[309813978,1704163839983,-506.05113733,0.00041095,7]
[309813979,1704163839993,-500.0,0.00041095,7]
[309813980,1704163840002,-500.0,0.00041095,7]
[309813981,1704163840011,-533.7215135,0.00041095,7]
[309813982,1704163840020,-165.78781241,0.00041095,7]
[309813983,1704163840029,-500.0,0.00041095,7]
[309813984,1704163840039,-500.0,0.00041095,7]
[309813985,1704163840049,-500.0,0.00041095,7]
[309813986,1704163840058,-500.0,0.00041095,7]
[309813987,1704163840067,-506.6352725,0.00041095,7]
[309813988,1704163840076,-36681.74,0.00041095,3]
[309813989,1704163840086,-232.76638391,0.00041095,7]
[309813990,1704163840095,-500.0,0.00041095,7]
[309813991,1704163840104,-500.0,0.00041095,7]
[309813992,1704163840114,-458.75628667,0.00041095,7]
[309813993,1704163840123,-501.7322067,0.00041095,7]
[309813994,1704163840133,-268.4865735,0.00041095,7]
[309813995,1704163840141,-517.91,0.00041095,7]
[309813996,1704163840150,-502.85488882,0.00041095,7]
[309813997,1704163840159,-500.0,0.00041095,7]
[309813998,1704163840168,-509.56449677,0.00041095,7]
[309813999,1704163840177,-504.12430121,0.00041095,7]
[309814000,1704163840187,-174.03449883,0.00041095,7]
[309814001,1704163840196,-500.0,0.00041095,7]
[309814002,1704163840205,-500.0,0.00041095,7]
[309814003,1704163840214,-500.0,0.00041095,7]
[309814004,1704163840223,-500.0,0.00041095,7]
[309814005,1704163840233,-500.0,0.00041095,7]
[309814006,1704163840242,-500.0,0.00041095,7]
[309814007,1704163840251,-500.0,0.00041095,7]
[309814008,1704163840260,-510.22535791,0.00041095,7]
[309814009,1704163840269,-502.74262644,0.00041095,7]
[309814010,1704163840278,-419.40332274,0.00041095,7]
[309814011,1704163840288,-504.43813749,0.00041095,7]
[309814012,1704163840297,-273.32975873,0.00041095,7]
[309814013,1704163840306,-6631.91,0.00041095,7]
[309814014,1704163840316,-500.0,0.00041095,7]
[309814015,1704163840325,-500.0,0.00041095,7]
[309814016,1704163840334,-2667.54,0.00041095,7]
[309814017,1704163840344,-501.80338183,0.00041095,7]
[309814018,1704163840353,-500.0,0.00041095,7]
[309814019,1704163840362,-500.0,0.00041095,7]
[309814020,1704163840371,-500.0,0.00041095,7]
[309814021,1704163840379,-500.0,0.00041095,7]
[309814022,1704163840388,-511.93036675,0.00041095,7]
[309814023,1704163840398,-500.0,0.00041095,7]
[309814024,1704163840409,-500.0,0.00041095,7]
[309814025,1704163840418,-500.0,0.00041095,7]
[309814026,1704163840427,-500.0,0.00041095,7]
[309814027,1704163840436,-502.30239505,0.00041095,7]
[309814028,1704163840445,-500.0,0.00041095,7]
[309814029,1704163840454,-500.0,0.00041095,7]
[309814030,1704163840464,-500.0,0.00041095,7]
[309814031,1704163840473,-515.79862376,0.00041095,7]
[309814032,1704163840482,-500.0,0.00041095,7]
[309814033,1704163840493,-501.40539649,0.00041095,7]
[309814034,1704163840502,-500.0,0.00041095,7]
[309814035,1704163840511,-500.0,0.00041095,7]
[309814036,1704163840521,-500.0,0.00041095,7]
[309814037,1704163840530,-500.0,0.00041095,7]
[309814038,1704163840539,-500.0,0.00041095,7]
[309814039,1704163840549,-504.15467671,0.00041095,7]
[309814040,1704163840558,-240.67710296,0.00041095,7]
[309814041,1704163840568,-500.0,0.00041095,7]
[309814042,1704163840578,-503.92146852,0.00041095,7]
[309814043,1704163840587,-505.73973288,0.00041095,7]
[309814044,1704163840596,-2669.87,0.00041095,7]
[309814045,1704163840606,-3154.38,0.00041095,7]
[309814046,1704163840615,-1695.21,0.00041095,7]
[309814047,1704163840625,-500.0,0.00041095,7]
[309814048,1704163840634,-500.0,0.00041231,7]
[309814049,1704163840644,-500.0,0.00041231,7]
[309814050,1704163840653,-500.0,0.00041232,7]
[309814051,1704163840662,-500.0,0.00041232,7]
[309814052,1704163840672,-500.0,0.00041232,7]
[309814053,1704163840681,-500.0,0.00041232,7]
[309814054,1704163840692,-371.7537333,0.00041232,7]
[309814055,1704163840702,-500.0,0.00041232,7]
[309814056,1704163840712,-812.67,0.00041232,7]
[309814057,1704163840721,-500.0,0.00041232,2]
[309814058,1704163840731,-500.0,0.00041232,7]
[309814059,1704163840740,-708.7,0.00041232,7]
[309814060,1704163840750,-1597.09,0.00041232,7]
[309814061,1704163840759,-534.66263788,0.00041232,7]
[309814062,1704163840768,-500.0,0.00041232,7]
[309814063,1704163840790,-2435.28,0.00041232,7]
[309814064,1704163840799,-500.0,0.00041232,7]
[309814065,1704163840809,-500.0,0.00041232,7]
[309814066,1704163840819,-500.0,0.00041232,7]
[309814067,1704163840829,-500.0,0.00041232,7]
[309814068,1704163840839,-500.0,0.00041232,7]
[309814069,1704163840849,-1650.02,0.00041232,7]
[309814070,1704163840859,-685.82,0.00041232,7]
[309814071,1704163840869,-500.0,0.00041232,7]
[309814072,1704163840878,-500.0,0.00041232,7]
[309814073,1704163840888,-500.0,0.00041232,7]
[309814074,1704163840897,-500.0,0.00041232,7]
[309814075,1704163840907,-504.08608425,0.00041232,7]
[309814076,1704163840917,-562.67162828,0.00041232,7]
[309814077,1704163840926,-500.0,0.00041232,7]
[309814078,1704163840936,-500.0,0.00041232,7]
[309814079,1704163840947,-36681.74,0.00041232,3]
[309814080,1704163840956,-529.74128568,0.00041232,7]
[309814081,1704163840966,-517.91,0.00041232,7]
[309814082,1704163840975,-500.0,0.00041232,7]
[309814083,1704163840984,-500.0,0.00041232,7]
[309814084,1704163840994,-500.0,0.00041232,7]
[309814085,1704163841004,-598.99639577,0.00041232,7]
[309814086,1704163841014,-6631.91,0.00041232,7]
[309814087,1704163841024,-2667.54,0.00041232,7]
[309814088,1704163841034,-500.0,0.00041232,7]
[309814089,1704163841043,-500.0,0.00041232,7]
[309814090,1704163841053,-500.0,0.00041232,7]
[309814091,1704163841063,-500.0,0.00041232,7]
[309814092,1704163841073,-323.57459987,0.00041232,7]
[309814093,1704163841082,-500.0,0.00041232,7]
[309814094,1704163841091,-304.47690849,0.00041232,7]
[309814095,1704163841101,-517.04843179,0.00041232,7]
[309814096,1704163841111,-500.0,0.00041232,7]
[309814097,1704163841120,-156.24147642,0.00041232,7]
[309814098,1704163841129,-500.0,0.00041232,7]
[309814099,1704163841140,-500.0,0.00041232,7]
[309814100,1704163841149,-2669.87,0.00041232,7]
[309814101,1704163841159,-3154.38,0.00041232,7]
[309814102,1704163841169,-1695.21,0.00041232,7]
[309814103,1704163841179,-500.0,0.00041232,7]
[309814104,1704163841188,-155.05749334,0.00041365,4]
[309814105,1704163841198,-255.28394121,0.00041366,4]
[309814106,1704163841207,-162.05733397,0.00041366,4]
[309814107,1704163841216,-155.25563182,0.00041366,20]
[309814108,1704163841226,-941.86125495,0.00041366,4]
[309814109,1704163841235,-366.53074943,0.00041366,7]
[309814110,1704163841246,-387.63304208,0.00041366,7]
[309814111,1704163841256,-500.0,0.00041366,7]
[309814112,1704163841265,-595.99371872,0.00041366,7]
[309814113,1704163841275,-169.74658558,0.00041367,3]
[309814114,1704163841284,-328.73382728,0.00041367,4]
[309814115,1704163841294,-181.06895775,0.00041367,2]
[309814116,1704163841304,-185.5969086,0.00041367,2]
[309814117,1704163841313,-155.9150112,0.00041367,4]
[309814118,1704163841323,-260.47439741,0.00041367,4]
[309814119,1704163841332,-1007.62231098,0.00041367,2]
[309814120,1704163841342,-663.93163578,0.00041367,2]
[309814121,1704163841351,-280.39024846,0.00041367,4]
[309814122,1704163841361,-660.78085481,0.00041367,4]
[309814123,1704163841370,-160.11156552,0.00041367,4]
[309814124,1704163841379,-27798.46783095,0.00041367,2]
[309814125,1704163841389,-182.96903638,0.00041367,2]
[309814126,1704163841398,-2788.51942833,0.00041368,4]
[309814127,1704163841408,-294.84794068,0.00041368,4]
[309814128,1704163841417,-500.0,0.00041368,7]
[309814129,1704163841427,-500.0,0.00041368,7]
[309814130,1704163841436,-500.0,0.00041369,7]
[309814131,1704163841446,-500.0,0.00041369,7]
[309814132,1704163841455,-500.0,0.00041369,7]
[309814133,1704163841465,-500.0,0.00041369,7]
[309814134,1704163841474,-500.0,0.00041369,7]
[309814135,1704163841483,-812.67,0.00041369,7]
[309814136,1704163841493,-500.0,0.00041369,2]
[309814137,1704163841503,-500.0,0.00041369,7]
[309814138,1704163841513,-708.7,0.00041369,7]
[309814139,1704163841522,-1597.09,0.00041369,7]
[309814140,1704163841532,-428.49624479,0.00041369,7]
[309814141,1704163841634,-2435.28,0.00041369,7]
[309814142,1704163841643,-639.94712464,0.00041369,7]
[309814143,1704163841653,-500.0,0.00041369,7]
[309814144,1704163841662,-500.0,0.00041369,7]
[309814145,1704163841672,-500.0,0.00041369,7]
[309814146,1704163841681,-500.0,0.00041369,7]
[309814147,1704163841691,-1650.02,0.00041369,7]
[309814148,1704163841701,-685.82,0.00041369,7]
[309814149,1704163841711,-500.0,0.00041369,7]
[309814150,1704163841721,-519.07740423,0.00041369,7]
[309814151,1704163841734,-500.0,0.00041369,7]
[309814152,1704163841744,-500.0,0.00041369,7]
[309814153,1704163841753,-500.0,0.00041369,7]
[309814154,1704163841763,-607.07533651,0.00041369,7]
[309814155,1704163841772,-36681.74,0.00041369,3]
[309814156,1704163841783,-517.91,0.00041369,7]
[309814157,1704163841793,-500.0,0.00041369,7]
[309814158,1704163841803,-395.96560805,0.00041369,7]
[309814159,1704163841813,-500.0,0.00041369,7]
[309814160,1704163841823,-6631.91,0.00041369,7]
[309814161,1704163841833,-2667.54,0.00041369,7]
[309814162,1704163841842,-500.0,0.00041369,7]
[309814163,1704163841851,-500.0,0.00041369,7]
[309814164,1704163841861,-500.0,0.00041369,7]
[309814166,1704163841871,-500.0,0.00041369,7]
[309814167,1704163841881,-500.0,0.00041369,7]
[309814168,1704163841890,-500.0,0.00041369,7]
[309814169,1704163841899,-500.0,0.00041369,7]
[309814170,1704163841908,-500.0,0.00041369,7]
[309814171,1704163841918,-2669.87,0.00041369,7]
[309814172,1704163841927,-3154.38,0.00041369,7]
[309814173,1704163841937,-1695.21,0.00041369,7]
[309814174,1704163841946,-500.0,0.00041369,7]
[309814175,1704163841955,-563.14,0.00041405,7]
[309814176,1704163841965,-563.14,0.00041405,7]
[309814177,1704163841974,-563.14,0.00041405,7]
[309814178,1704163841984,-563.14,0.00041405,7]
[309814179,1704163841994,-563.14,0.00041405,7]
[309814180,1704163842005,-563.14,0.00041405,7]
[309814181,1704163842014,-563.14,0.00041405,7]
[309814182,1704163842024,-563.14,0.00041405,7]
[309814183,1704163842033,-563.14,0.00041405,7]
[309814184,1704163842042,-563.14,0.00041405,7]
[309814185,1704163842051,-100377.17082752,0.00041406,2]
[309814186,1704163842060,-213.43987,0.000415,2]
[309814187,1704163842070,-188.8275591,0.00041505,7]
[309814188,1704163842080,-500.0,0.00041506,7]
[309814189,1704163842090,-500.0,0.00041506,7]
[309814190,1704163842100,-500.0,0.00041506,7]
[309814191,1704163842111,-500.0,0.00041506,7]
[309814192,1704163842121,-500.0,0.00041506,7]
[309814193,1704163842131,-812.67,0.00041506,7]
[309814194,1704163842141,-500.0,0.00041506,2]
[309814195,1704163842151,-500.0,0.00041506,7]
[309814196,1704163842161,-708.7,0.00041506,7]
[309814197,1704163842172,-1597.09,0.00041506,7]
[309814198,1704163842183,-2435.28,0.00041506,7]
[309814199,1704163842193,-500.0,0.00041506,7]
[309814200,1704163842202,-500.0,0.00041506,7]
[309814201,1704163842213,-500.0,0.00041506,7]
[309814202,1704163842224,-500.0,0.00041506,7]
[309814203,1704163842233,-1650.02,0.00041506,7]
[309814204,1704163842245,-685.82,0.00041506,7]
[309814205,1704163842255,-500.0,0.00041506,7]
[309814206,1704163842264,-500.0,0.00041506,7]
[309814207,1704163842273,-500.0,0.00041506,7]
[309814208,1704163842283,-500.0,0.00041506,7]
[309814209,1704163842292,-36681.74,0.00041506,3]
[309814210,1704163842302,-517.91,0.00041506,7]
[309814211,1704163842311,-506.92236608,0.00041506,7]
[309814212,1704163842321,-500.0,0.00041506,7]
[309814213,1704163842331,-6631.91,0.00041506,7]
[309814214,1704163842341,-2667.54,0.00041506,7]
[309814215,1704163842350,-500.0,0.00041506,7]
[309814216,1704163842360,-500.0,0.00041506,7]
[309814217,1704163842370,-500.0,0.00041506,7]
[309814218,1704163842380,-500.0,0.00041506,7]
[309814219,1704163842390,-479.3041618,0.00041506,7]
[309814220,1704163842399,-510.96560856,0.00041506,7]
[309814221,1704163842410,-500.0,0.00041506,7]
[309814222,1704163842420,-500.0,0.00041506,7]
[309814223,1704163842431,-2669.87,0.00041506,7]
[309814224,1704163842440,-3154.38,0.00041506,7]
[309814225,1704163842451,-1695.21,0.00041506,7]
[309814226,1704163842462,-500.0,0.00041506,7]
[309814227,1704163842473,-154.5873355,0.00041515,2]
[309814228,1704163842482,-446.62329,0.00041548,2]
[309814229,1704163842495,-153.0,0.00041548,2]
[309814230,1704163842506,-153.0,0.00041549,2]
[309814231,1704163842518,-153.0,0.00041549,2]
[309814232,1704163842527,-332.152399,0.00041553,120]
[309814233,1704163842537,-155.0,0.00041602,2]
[309814234,1704163842547,-500.0,0.00041643,7]
[309814235,1704163842556,-500.0,0.00041643,7]
[309814236,1704163842568,-500.0,0.00041643,7]
[309814237,1704163842578,-500.0,0.00041643,7]
[309814238,1704163842589,-812.67,0.00041643,7]
[309814239,1704163842599,-502.22108478,0.00041643,2]
[309814240,1704163842608,-500.0,0.00041643,7]
[309814241,1704163842618,-708.7,0.00041643,7]
[309814242,1704163842628,-1597.09,0.00041643,7]
[309814243,1704163842639,-2435.28,0.00041643,7]
[309814244,1704163842649,-500.0,0.00041643,7]
[309814245,1704163842659,-500.0,0.00041643,7]
[309814246,1704163842670,-500.0,0.00041643,7]
[309814247,1704163842680,-1650.02,0.00041643,7]
[309814248,1704163842691,-500.0,0.00041643,7]
[309814249,1704163842702,-685.82,0.00041643,7]
[309814250,1704163842712,-500.0,0.00041643,7]
[309814251,1704163842722,-356.24399595,0.00041643,7]
[309814252,1704163842733,-500.0,0.00041643,7]
[309814253,1704163842744,-500.0,0.00041643,7]
[309814254,1704163842755,-36681.74,0.00041643,3]
[309814255,1704163842765,-517.91,0.00041643,7]
[309814256,1704163842775,-500.0,0.00041643,7]
[309814257,1704163842785,-2720.86923229,0.00041643,7]
[309814258,1704163842852,-3911.04076771,0.00041643,7]
[309814259,1704163842862,-2667.54,0.00041643,7]
[309814260,1704163842872,-500.0,0.00041643,7]
[309814261,1704163842882,-500.0,0.00041643,7]
[309814262,1704163842894,-500.0,0.00041643,7]
[309814263,1704163842903,-500.0,0.00041643,7]
[309814264,1704163842913,-500.0,0.00041643,7]
[309814265,1704163842922,-500.0,0.00041643,7]
[309814266,1704163842932,-2669.87,0.00041643,7]
[309814267,1704163842944,-3154.38,0.00041643,7]
[309814268,1704163842953,-1695.21,0.00041643,7]
[309814269,1704163842964,-500.0,0.00041643,7]
[309814270,1704163842974,-1508.081043,0.000417,3]
[309814271,1704163842985,-500.0,0.0004178,7]
[309814272,1704163842995,-500.0,0.0004178,7]
[309814273,1704163843005,-500.0,0.0004178,7]
[309814274,1704163843014,-500.0,0.0004178,7]
[309814275,1704163843023,-812.67,0.0004178,7]
[309814276,1704163843032,-500.0,0.0004178,7]
[309814277,1704163843042,-708.7,0.0004178,7]
[309814278,1704163843051,-1597.09,0.0004178,7]
[309814279,1704163843060,-2435.28,0.0004178,7]